Workbook

Sheet Выгрузка
A1: Показ. БухУч | B1: Показатель НУ | C1: Вид дохода/расхода | D1: БухУч за мес. | E1: БухУч за отч.пер. | F1: НалУч за мес. | G1: НалУч за отч.пер.
A2: 201-011-01-01-01 | B2: 201-011-01-01-01 | C2: Выручка1 | D2: 1734252412 | E2: 2.268808945e+10
A3: 201-011-02-01 | B3: 201-011-02-01 | C3: Выручка7 | D3: 27629038.75 | E3: 252065044.3 | F3: 27629038.75 | G3: 252065044.3
A4: 201-011-02-02 | B4: 201-011-02-02 | C4: Выручка8 | D4: -4214599.1 | E4: -38450599.43 | F4: -4214599.1 | G4: -38450599.43
A5: 201-013-01-01 | B5: 201-013-01-01 | C5: Выручка9 | D5: 1 | E5: 2 | F5: 3 | G5: 4
A6: 201-013-01-02 | B6: 201-013-01-02 | C6: Выручка10 | D6: -905346.44 | E6: -10183705.91 | F6: -905346.44 | G6: -10183705.91
A7: 201-013-02 | B7: 201-013-02 | C7: Выручка11 | E7: 72 | G7: 12
A8: 201-014-03-01 | B8: 201-014-03-01 | C8: Выручка12 | E8: 82 | G8: 742
A9: 201-014-03-02 | B9: 201-014-03-02 | C9: Выручка13 | E9: 782 | G9: 121
A10: 201-014-04-01 | B10: 201-014-04-01 | C10: Выручка14
A11: 201-014-04-02 | B11: 201-014-04-02 | C11: Выручка15 | E11: 0 | G11: 2121
A12: 203-210 | B12: 203-210 | C12: Выручка16 | D12: 0 | E12: 0 | F12: 0 | G12: 0
A13: 203-100-01 | B13: 203-100-01 | C13: Выручка17 | E13: 1
A14: 203-100-02 | B14: 203-100-02 | C14: Выручка18 | D14: 0 | E14: 0 | F14: 0 | G14: 0
A15: 0 Раздел (группа строк) 100 | D15: 1819031104 | E15: 2.436100599e+10 | F15: 48612940.52 | G15: 1236987712
A16: 201-012-01-01 | B16: 201-012-01-01 | C16: Выручка18 | D16: 0 | E16: 0 | F16: 0 | G16: 0
A17: 201-012-01-02 | B17: 201-012-01-02 | C17: Выручка19 | D17: 0 | E17: 0 | F17: 0 | G17: 0
A18: 201-012-01-03 | B18: 201-012-01-03 | C18: Выручка20 | D18: 9308375 | E18: 90158393 | F18: 9308375 | G18: 90158393
A19: 0 Раздел (группа строк) 200 | D19: 9308375 | E19: 90158393 | F19: 9308375 | G19: 90158393

Sheet Регистр12
A2: Регистр
A4: Показатель БУ | B4: Показатель НУ | C4: Наименование показателя | D4: БухУч за отч.пер. | E4: НалУч за отч.пер. | F4: Разн за отч.пер. | G4: проверка 0 строки
A5: 201-011-01-01-01 | B5: 201-011-01-01-01 | C5: Выручка1 | D5: =VLOOKUP(A5,Выгрузка!$A$1:$I$19,5,FALSE) -> 2.268808945e+10 | E5: =VLOOKUP(A5,Выгрузка!$A$1:$I$19,7,FALSE) -> 0 | F5: =D5-E5 -> 2.268808945e+10 | G5: =D5*2+E5*3+F5*4 -> 1.361285367e+11
A6: 201-011-02-01 | B6: 201-011-02-01 | C6: Выручка7 | D6: =VLOOKUP(A6,Выгрузка!$A$1:$I$19,5,FALSE) -> 252065044.3 | E6: =VLOOKUP(A6,Выгрузка!$A$1:$I$19,7,FALSE) -> 252065044.3 | F6: 0 | G6: =D6*2+E6*3+F6*4 -> 1260325222
A7: 201-011-02-02 | B7: 201-011-02-02 | C7: Выручка8 | D7: =VLOOKUP(A7,Выгрузка!$A$1:$I$19,5,FALSE) -> -38450599.43 | E7: =VLOOKUP(A7,Выгрузка!$A$1:$I$19,7,FALSE) -> -38450599.43 | F7: 0 | G7: -192252997.1
A8: 201-013-01-01 | B8: 201-013-01-01 | C8: Выручка9 | D8: =VLOOKUP(A8,Выгрузка!$A$1:$I$19,5,FALSE) -> 2 | E8: =VLOOKUP(A8,Выгрузка!$A$1:$I$19,7,FALSE) -> 4 | F8: -2 | G8: 8
A9: 201-013-01-02 | B9: 201-013-01-02 | C9: Выручка10 | D9: =VLOOKUP(A9,Выгрузка!$A$1:$I$19,5,FALSE) -> -10183705.91 | E9: =VLOOKUP(A9,Выгрузка!$A$1:$I$19,7,FALSE) -> -10183705.91 | F9: 0 | G9: -50918529.55
A10: 201-013-02 | B10: 201-013-02 | C10: Выручка11 | D10: =VLOOKUP(A10,Выгрузка!$A$1:$I$19,5,FALSE) -> 72 | E10: =VLOOKUP(A10,Выгрузка!$A$1:$I$19,7,FALSE) -> 12 | F10: 60 | G10: 420
A11: 201-014-03-01 | B11: 201-014-03-01 | C11: Выручка12 | D11: =VLOOKUP(A11,Выгрузка!$A$1:$I$19,5,FALSE) -> 82 | E11: =VLOOKUP(A11,Выгрузка!$A$1:$I$19,7,FALSE) -> 742 | F11: -660 | G11: -250
A12: Во от реал. тов.собств.пр-ва: (стр.011 прил.№1 к листу 02) | D12: =SUM(D5:D11) -> 2.289152035e+10 | E12: =SUM(E5:E11) -> 203431497 | F12: =SUM(F5:F11) -> 2.268808885e+10 | G12: 1.371456906e+11
A13: 201-014-03-02 | B13: 201-014-03-02 | C13: Выручка13 | D13: 0 | E13: 0 | F13: =D13-E13 -> 0 | G13: 0
A14: 201-014-04-01 | B14: 201-014-04-01 | C14: Выручка14 | D14: =VLOOKUP(A14,Выгрузка!$A$1:$I$19,5,FALSE) -> 0 | E14: =VLOOKUP(A14,Выгрузка!$A$1:$I$19,7,FALSE) -> 0 | F14: =D14-E14 -> 0 | G14: 0
A15: 201-014-04-02 | B15: 201-014-04-02 | C15: Выручка15 | D15: 0 | E15: 0 | F15: =D15-E15 -> 0 | G15: 0
A16: 203-210 | B16: 203-210 | C16: Выручка16 | D16: =VLOOKUP(A16,Выгрузка!$A$1:$I$19,5,FALSE) -> 0 | E16: =VLOOKUP(A16,Выгрузка!$A$1:$I$19,7,FALSE) -> 0 | F16: =D16-E16 -> 0 | G16: 0
A17: Пр от реализации прочего имущества: ( стр.014 прил.№1 к листу 02) | D17: =SUM(D13:D16) -> 0 | E17: =SUM(E13:E16) -> 0 | F17: =SUM(F13:F16) -> 0 | G17: 0
A18: 203-100-01 | B18: 203-100-01 | C18: Выручка17 | D18: =VLOOKUP(A18,Выгрузка!$A$1:$I$19,5,FALSE) -> 1 | E18: =VLOOKUP(A18,Выгрузка!$A$1:$I$19,7,FALSE) -> 0 | F18: =D18-E18 -> 1 | G18: 6
A19: 203-100-02 | B19: 203-100-02 | C19: Выручка18 | D19: =VLOOKUP(A19,Выгрузка!$A$1:$I$19,5,FALSE) -> 0 | E19: =VLOOKUP(A19,Выгрузка!$A$1:$I$19,7,FALSE) -> 0 | F19: =D19-E19 -> 0 | G19: 0
A20: Выручка от реализ.права.треб.до наступ. срока платежа (стр.100 прил.№3 к листу 02) | D20: =SUM(D18:D19) -> 1 | E20: =SUM(E18:E19) -> 0 | F20: 1 | G20: 6
A21: Итого Выручка от реал. тов.собств.пр-ва: (стр.011 прил.№1 к листу 02) и прочего | D21: =D12+D17+D20 -> 2.289152035e+10 | E21: =E12+E17+E20 -> 203431497 | F21: =F12+F17+F20 -> 2.268808885e+10 | G21: 1.371456906e+11
A22: 201-012-01-01 | B22: 201-012-01-01 | C22: Выручка18 | D22: =VLOOKUP(A22,Выгрузка!$A$1:$I$19,5,FALSE) -> 0 | E22: =VLOOKUP(A22,Выгрузка!$A$1:$I$19,7,FALSE) -> 0 | F22: =D22-E22 -> 0 | G22: 0
A23: 201-012-01-02 | B23: 201-012-01-02 | C23: Выручка19 | D23: =VLOOKUP(A23,Выгрузка!$A$1:$I$19,5,FALSE) -> 0 | E23: =VLOOKUP(A23,Выгрузка!$A$1:$I$19,7,FALSE) -> 0 | F23: 0 | G23: 0
A24: 201-012-01-03 | B24: 201-012-01-03 | C24: Выручка20 | D24: =VLOOKUP(A24,Выгрузка!$A$1:$I$19,5,FALSE) -> 90158393 | E24: =VLOOKUP(A24,Выгрузка!$A$1:$I$19,7,FALSE) -> 90158393 | F24: =D24-E24 -> 0 | G24: 450791965
A25: Выручка от реализации покупных товаров (стр.012 прил.№1 к листу 02) | D25: =SUM(D22:D24) -> 90158393 | E25: =SUM(E22:E24) -> 90158393 | F25: =SUM(F22:F24) -> 0 | G25: 450791965
D28: Фио | F28: Иванов
